fUSD/lending_fUSD_20260412
["ID","MTS","AMOUNT","RATE_DAILY","PERIOD"]
[420319809,1775962256693,-157.0,0.00037815,30]
[420319810,1775962256702,-151.0,0.00037823,30]
[420319811,1775962256712,-210.0,0.00037823,30]
[420319812,1775962256733,-3900.0,0.000379,13]
[420319813,1775962256750,-1000.0,0.00038,30]
[420319814,1775962256760,-336.86580281,0.000381,33]
[420319815,1775962256770,-3207.34375655,0.00038256,2]
[420319816,1775962256781,-179.26802352,0.00038308,2]
[420319817,1775962256796,-984.21243757,0.00038308,2]
[420319818,1775962256805,-500.0,0.00038355,2]
[420319819,1775962256818,-7475.02039255,0.00038355,8]
[420319820,1775962256831,-7475.02039254,0.00038355,8]
[420319821,1775962256849,-150.0,0.00038355,2]
[420319822,1775962256859,-150.0,0.00038355,2]
[420319823,1775962256872,-226.77870962,0.00038355,2]
[420319824,1775962256887,-684.809141,0.00038356,8]
[420319825,1775962256896,-332.857305,0.00038356,8]
[420319826,1775962256906,-500.0,0.00038356,8]
[420319827,1775962256921,-500.0,0.00038356,8]
[420319828,1775962256947,-500.0,0.00038356,8]
[420319829,1775962256957,-500.0,0.00038356,8]
[420319830,1775962256971,-197.51353234,0.00038356,8]
[420319831,1775962256995,-500.0,0.00038356,8]
[420319832,1775962257006,-500.0,0.00038356,2]
[420319833,1775962257017,-500.0,0.00038356,8]
[420319834,1775962257029,-500.0,0.00038356,8]
[420319835,1775962257040,-500.0,0.00038356,8]
[420319836,1775962257050,-500.0,0.00038356,8]
[420319837,1775962257065,-500.0,0.00038356,8]
[420319838,1775962257074,-500.0,0.00038356,8]
[420319839,1775962257088,-500.0,0.00038356,8]
[420319840,1775962257097,-500.0,0.00038356,8]
[420319841,1775962257111,-500.0,0.00038356,8]
[420319842,1775962257122,-500.0,0.00038356,8]
[420319843,1775962257137,-300.0,0.00038356,2]
[420319844,1775962257147,-2376.66,0.00038356,8]
[420319845,1775962257161,-500.0,0.00038356,8]
[420319846,1775962257177,-500.0,0.00038356,8]
[420319847,1775962257191,-500.0,0.00038356,8]
[420319848,1775962257205,-500.0,0.00038356,8]
[420319849,1775962257234,-500.0,0.00038356,8]
[420319850,1775962257243,-534.51406898,0.00038356,8]
[420319851,1775962257253,-607.40648892,0.00038356,8]
[420319852,1775962257274,-500.0,0.00038356,8]
[420319853,1775962257284,-500.0,0.00038356,8]
[420319854,1775962257293,-500.0,0.00038356,8]
[420319855,1775962257311,-500.0,0.00038356,8]
[420319856,1775962257338,-233.44509588,0.00038356,8]
[420319857,1775962257349,-500.0,0.00038356,8]
[420319858,1775962257372,-500.0,0.00038356,8]
[420319859,1775962257402,-500.0,0.00038356,8]
[420319860,1775962257420,-500.0,0.00038356,8]
[420319861,1775962257430,-500.0,0.00038356,8]
[420319862,1775962257440,-1559.17,0.00038356,8]
[420319863,1775962257464,-500.0,0.00038356,8]
[420319864,1775962257479,-569.16568475,0.00038356,8]
[420319865,1775962257491,-500.0,0.00038356,8]
[420319866,1775962257500,-500.0,0.00038356,8]
[420319867,1775962257511,-500.0,0.00038356,8]
[420319868,1775962257708,-492.11658685,0.00038356,8]
[420319869,1775962257720,-582.16696845,0.00038356,8]
[420319870,1775962257740,-837.19,0.00038356,8]
[420319871,1775962257751,-500.0,0.00038356,8]
[420319872,1775962257762,-500.0,0.00038356,8]
[420319873,1775962257782,-500.0,0.00038356,8]
[420319874,1775962257794,-500.0,0.00038356,8]
[420319875,1775962257807,-614.47266423,0.00038356,8]
[420319876,1775962257825,-500.0,0.00038356,8]
[420319877,1775962257835,-500.0,0.00038356,8]
[420319878,1775962257853,-500.0,0.00038356,8]
[420319879,1775962257875,-625.80643416,0.00038356,8]
[420319880,1775962257885,-2986.87,0.00038356,8]
[420319881,1775962257909,-500.0,0.00038356,8]
[420319882,1775962257923,-500.0,0.00038356,8]
[420319883,1775962257936,-500.0,0.00038356,8]
[420319884,1775962257955,-500.0,0.00038356,8]
[420319885,1775962257970,-500.0,0.00038356,8]
[420319886,1775962257999,-500.0,0.00038356,8]
[420319887,1775962258009,-500.0,0.00038356,8]
[420319888,1775962258020,-500.0,0.00038356,8]
[420319889,1775962258045,-610.60269395,0.00038356,8]
[420319890,1775962258055,-1524.47,0.00038356,8]
[420319891,1775962258072,-556.13268197,0.00038356,8]
[420319892,1775962258095,-500.0,0.00038356,8]
[420319893,1775962258110,-780.38,0.00038356,8]
[420319894,1775962258147,-597.37781472,0.00038356,8]
[420319895,1775962258167,-500.0,0.00038356,8]
[420319896,1775962258179,-501.29742072,0.00038356,8]
[420319897,1775962258196,-500.0,0.00038356,8]
[420319898,1775962258207,-586.12,0.00038356,8]
[420319899,1775962258222,-1014.57,0.00038356,8]
[420319900,1775962258268,-1048.07,0.00038356,8]
[420319901,1775962258306,-500.0,0.00038356,8]
[420319902,1775962258346,-500.0,0.00038356,8]
[420319903,1775962258372,-500.0,0.00038356,8]
[420319904,1775962258383,-500.0,0.00038356,8]
[420319905,1775962258393,-500.0,0.00038356,8]
[420319906,1775962258410,-500.0,0.00038356,8]
[420319907,1775962258434,-500.0,0.00038356,8]
[420319908,1775962258444,-2620.57,0.00038356,8]
[420319909,1775962258455,-500.0,0.00038356,8]
[420319910,1775962258478,-500.0,0.00038356,8]
[420319911,1775962258488,-500.0,0.00038356,8]
[420319912,1775962258498,-1507.7,0.00038356,8]
[420319913,1775962258529,-500.0,0.00038356,8]
[420319914,1775962258539,-500.0,0.00038356,8]
[420319915,1775962258552,-493.10593381,0.00038356,8]
[420319916,1775962258571,-500.0,0.00038356,8]
[420319917,1775962258582,-500.0,0.00038356,8]
[420319918,1775962258591,-500.0,0.00038356,8]
[420319919,1775962258612,-500.0,0.00038356,8]
[420319920,1775962258623,-950.97,0.00038356,8]
[420319921,1775962258633,-500.0,0.00038356,8]
[420319922,1775962258649,-500.0,0.00038356,8]
[420319923,1775962258663,-500.0,0.00038356,8]
[420319924,1775962258673,-1476.32,0.00038356,8]
[420319925,1775962258683,-580.023292,0.00038356,8]
[420319926,1775962258698,-500.0,0.00038356,8]
[420319927,1775962258711,-510.26246112,0.00038356,8]
[420319928,1775962258721,-500.0,0.00038356,8]
[420319929,1775962258733,-1513.15,0.00038356,8]
[420319930,1775962258745,-500.0,0.00038356,8]
[420319931,1775962258757,-500.0,0.00038356,8]
[420319932,1775962258774,-581.3988675,0.00038356,8]
[420319933,1775962258783,-500.0,0.00038356,8]
[420319934,1775962258793,-1343.6,0.00038356,8]
[420319935,1775962258804,-1386.01,0.00038356,8]
[420319936,1775962258819,-540.31614963,0.00038356,8]
[420319937,1775962258831,-500.0,0.00038356,8]
[420319938,1775962258842,-571.68090743,0.00038356,8]
[420319939,1775962258853,-500.0,0.00038356,8]
[420319940,1775962258867,-500.0,0.00038356,8]
[420319941,1775962258879,-500.0,0.00038356,8]
[420319942,1775962258890,-500.0,0.00038356,8]
[420319943,1775962258904,-670.38,0.00038356,8]
[420319944,1775962258919,-685.72,0.00038356,8]
[420319945,1775962258930,-500.0,0.00038356,8]
[420319946,1775962258941,-520.34198702,0.00038356,8]
[420319947,1775962258982,-500.0,0.00038356,8]
[420319948,1775962258991,-500.0,0.00038356,8]
[420319949,1775962259005,-623.25354004,0.00038356,8]
[420319950,1775962259031,-500.0,0.00038356,8]
[420319951,1775962259049,-645.05073078,0.00038356,8]
[420319952,1775962259072,-500.0,0.00038356,8]
[420319953,1775962259082,-500.0,0.00038356,8]
[420319954,1775962259114,-500.0,0.00038356,8]
[420319955,1775962259125,-500.0,0.00038356,8]
[420319956,1775962259137,-500.0,0.00038356,8]
[420319957,1775962259164,-500.0,0.00038356,8]
[420319958,1775962259174,-500.0,0.00038356,8]
[420319959,1775962259185,-584.51701778,0.00038356,8]
[420319960,1775962259197,-621.44705237,0.00038356,8]
[420319961,1775962259209,-500.0,0.00038356,8]
[420319962,1775962259221,-216.71163962,0.00038356,8]
[420319963,1775962259232,-500.0,0.00038356,8]
[420319964,1775962259242,-1664.27,0.00038356,8]
[420319965,1775962259253,-500.0,0.00038356,8]
[420319966,1775962259265,-559.5343662,0.00038356,8]
[420319967,1775962259274,-596.13984009,0.00038356,8]
[420319968,1775962259285,-500.0,0.00038356,8]
[420319969,1775962259296,-500.0,0.00038356,8]
[420319970,1775962259308,-621.97474849,0.00038356,8]
[420319971,1775962259318,-500.0,0.00038356,8]
[420319972,1775962259327,-500.0,0.00038356,8]
[420319973,1775962259338,-500.0,0.00038356,8]
[420319974,1775962259349,-500.0,0.00038356,8]
[420319975,1775962259360,-500.0,0.00038356,8]
[420319976,1775962259371,-500.0,0.00038356,8]
[420319977,1775962259387,-300.0,0.00038356,2]
[420319978,1775962259397,-886.99,0.00038356,8]
[420319979,1775962259409,-739.5,0.00038356,8]
[420319980,1775962259418,-1131.82,0.00038356,8]
[420319981,1775962259432,-500.0,0.00038356,8]
[420319982,1775962259443,-500.0,0.00038356,8]
[420319983,1775962259454,-500.0,0.00038356,8]
[420319984,1775962259467,-1605.38,0.00038356,8]
[420319985,1775962259494,-500.0,0.00038356,8]
[420319986,1775962259506,-500.0,0.00038356,8]
[420319987,1775962259529,-500.0,0.00038356,8]
[420319988,1775962259542,-500.0,0.00038356,8]
[420319989,1775962259553,-500.0,0.00038356,8]
[420319990,1775962259577,-1413.94,0.00038356,8]
[420319991,1775962259597,-500.0,0.00038356,8]
[420319992,1775962259612,-1597.0,0.00038356,8]
[420319993,1775962259621,-500.0,0.00038356,8]
[420319994,1775962259631,-638.92981322,0.00038356,8]
[420319995,1775962259645,-500.0,0.00038356,8]
[420319996,1775962259658,-612.37862718,0.00038356,8]
[420319997,1775962259683,-614.91,0.00038356,8]
[420319998,1775962259694,-500.0,0.00038356,8]
[420319999,1775962259715,-500.0,0.00038356,8]
[420320000,1775962259724,-1644.39,0.00038356,8]
[420320001,1775962259734,-500.0,0.00038356,8]
[420320002,1775962259750,-500.0,0.00038356,8]
[420320003,1775962259764,-500.0,0.00038356,8]
[420320004,1775962259774,-500.0,0.00038356,8]
[420320005,1775962259805,-500.0,0.00038356,8]
[420320006,1775962259815,-500.0,0.00038356,8]
[420320007,1775962259828,-1378.71,0.00038356,8]
[420320008,1775962259858,-500.0,0.00038356,8]
[420320009,1775962259872,-500.0,0.00038356,8]
[420320010,1775962259907,-1844.61,0.00038356,8]
[420320011,1775962259947,-500.0,0.00038356,8]
[420320012,1775962259994,-500.0,0.00038356,8]
[420320013,1775962260018,-500.0,0.00038356,8]
[420320014,1775962260037,-651.99,0.00038356,8]
[420320015,1775962260060,-500.0,0.00038356,8]
[420320016,1775962260077,-500.0,0.00038356,8]
[420320017,1775962260094,-500.0,0.00038356,8]
[420320018,1775962260114,-264.01260802,0.00038356,8]
[420320019,1775962260130,-500.0,0.00038356,8]
[420320020,1775962260149,-603.34103056,0.00038356,8]
[420320021,1775962260160,-560.51162056,0.00038356,8]
[420320022,1775962260174,-525.84,0.00038356,8]
[420320023,1775962260186,-226.99035301,0.00038356,8]
[420320024,1775962260198,-500.0,0.00038356,8]
[420320025,1775962260218,-639.10787192,0.00038356,8]
[420320026,1775962260229,-1430.05,0.00038356,8]
[420320027,1775962260243,-500.0,0.00038356,8]
[420320028,1775962260262,-500.0,0.00038356,8]
[420320029,1775962260273,-178.51788237,0.00038356,8]
[420320030,1775962260287,-2234.67,0.00038356,8]
[420320031,1775962260308,-500.0,0.00038356,8]
[420320032,1775962260319,-736.91,0.00038356,8]
[420320033,1775962260332,-571.35602608,0.00038356,8]
[420320034,1775962260351,-626.89378203,0.00038356,8]
[420320035,1775962260362,-500.0,0.00038356,8]
[420320036,1775962260375,-1098.86,0.00038356,8]
[420320037,1775962260391,-968.16,0.00038356,8]
[420320038,1775962260406,-644.38173455,0.00038356,8]
[420320039,1775962260424,-500.0,0.00038356,8]
[420320040,1775962260438,-500.0,0.00038356,8]
[420320041,1775962260454,-500.0,0.00038356,8]
[420320042,1775962260467,-500.0,0.00038356,8]
[420320043,1775962260480,-500.0,0.00038356,8]
[420320044,1775962260492,-799.5,0.00038356,8]
[420320045,1775962260520,-500.0,0.00038356,8]
[420320046,1775962260531,-500.0,0.00038356,8]
[420320047,1775962260542,-500.0,0.00038356,8]
[420320048,1775962260566,-500.0,0.00038356,8]
[420320049,1775962260588,-500.0,0.00038356,8]
[420320050,1775962260603,-500.0,0.00038356,8]
[420320051,1775962260657,-1717.33,0.00038356,8]
[420320052,1775962260677,-500.0,0.00038356,8]
[420320053,1775962260706,-703.3,0.00038356,8]
[420320054,1775962260721,-674.21,0.00038356,8]
[420320055,1775962260756,-500.0,0.00038356,8]
[420320056,1775962260766,-161.6326108,0.00038356,8]
[420320057,1775962260801,-653.0,0.00038356,8]
[420320058,1775962260810,-500.0,0.00038356,8]
[420320059,1775962260842,-500.0,0.00038356,8]
[420320060,1775962260852,-500.0,0.00038356,8]
[420320061,1775962260870,-500.0,0.00038356,8]
[420320062,1775962260880,-500.0,0.00038356,8]
[420320063,1775962260890,-747.44,0.00038356,8]
[420320064,1775962260902,-500.0,0.00038356,8]
[420320065,1775962260911,-500.0,0.00038356,8]
[420320066,1775962260921,-408.39343086,0.00038356,2]
[420320067,1775962260932,-1360.63,0.00038356,8]
[420320068,1775962260942,-660.04,0.00038356,8]
[420320069,1775962260954,-500.0,0.00038356,8]
[420320070,1775962260966,-500.0,0.00038356,8]
[420320071,1775962260981,-500.0,0.00038356,8]
[420320072,1775962260994,-500.0,0.00038356,8]
[420320073,1775962261007,-500.0,0.00038356,8]
[420320074,1775962261021,-500.0,0.00038356,8]
[420320075,1775962261035,-1459.67,0.00038356,8]
[420320076,1775962261049,-1240.9,0.00038356,8]
[420320077,1775962261062,-500.0,0.00038356,8]
[420320078,1775962261076,-500.0,0.00038356,8]
[420320079,1775962261092,-1185.03,0.00038356,8]
[420320080,1775962261103,-500.0,0.00038356,8]
[420320081,1775962261112,-500.0,0.00038356,8]
[420320082,1775962261134,-800.37,0.00038356,8]
[420320083,1775962261494,-177.12115101,0.00038356,8]
[420320084,1775962261505,-500.0,0.00038356,8]
[420320085,1775962261515,-500.0,0.00038356,8]
[420320086,1775962261527,-630.20008475,0.00038356,8]
[420320087,1775962261537,-156.90346887,0.00038356,8]
[420320088,1775962261546,-500.0,0.00038356,8]
[420320089,1775962261557,-500.0,0.00038356,8]
[420320090,1775962261574,-500.0,0.00038356,8]
[420320091,1775962261586,-1092.72,0.00038356,8]
[420320092,1775962261595,-531.83718452,0.00038356,8]
[420320093,1775962261609,-270.25877972,0.00038356,8]
[420320094,1775962261623,-500.0,0.00038356,8]
[420320095,1775962261644,-565.43694127,0.00038356,8]
[420320096,1775962261664,-500.0,0.00038356,8]
[420320097,1775962261674,-500.0,0.00038356,8]
[420320098,1775962261697,-500.0,0.00038356,8]
[420320099,1775962261738,-500.0,0.00038356,8]
[420320100,1775962261747,-500.0,0.00038356,8]
[420320101,1775962261782,-624.7288872,0.00038356,8]
[420320102,1775962261797,-500.0,0.00038356,8]
[420320103,1775962261834,-500.0,0.00038356,8]
[420320104,1775962261846,-500.0,0.00038356,8]
[420320105,1775962261871,-500.0,0.00038356,8]
[420320106,1775962261888,-500.0,0.00038356,8]
[420320107,1775962261925,-500.0,0.00038356,8]
[420320108,1775962261960,-500.0,0.00038356,8]
[420320109,1775962261976,-500.0,0.00038356,8]
[420320110,1775962261996,-500.0,0.00038356,8]
[420320111,1775962262010,-500.0,0.00038356,8]
[420320112,1775962262038,-500.0,0.00038356,8]
[420320113,1775962262051,-508.90733226,0.00038356,8]
[420320114,1775962262067,-500.0,0.00038356,8]
[420320115,1775962262087,-500.0,0.00038356,8]
[420320116,1775962262097,-568.69,0.00038356,8]
[420320117,1775962262122,-563.77,0.00038356,8]
[420320118,1775962262147,-500.0,0.00038356,8]
[420320119,1775962262173,-500.0,0.00038356,8]
[420320120,1775962262190,-500.0,0.00038356,8]
[420320121,1775962262207,-570.1,0.00038356,8]
[420320122,1775962262231,-500.0,0.00038356,8]
[420320123,1775962262242,-601.73021446,0.00038356,8]
[420320124,1775962262254,-500.0,0.00038356,8]
[420320125,1775962262269,-769.76,0.00038356,8]
[420320126,1775962262285,-2456.36,0.00038356,8]
[420320127,1775962262303,-500.0,0.00038356,8]
[420320128,1775962262314,-890.47,0.00038356,8]
[420320129,1775962262331,-176.5486742,0.00038356,8]
[420320130,1775962262353,-1013.42,0.00038356,8]
[420320131,1775962262370,-500.0,0.00038356,8]
[420320132,1775962262391,-500.0,0.00038356,8]
[420320133,1775962262404,-454.32198313,0.00038356,8]
[420320134,1775962262422,-500.0,0.00038356,8]
[420320135,1775962262433,-500.0,0.00038356,8]
[420320136,1775962262446,-767.39,0.00038356,8]
[420320137,1775962262461,-500.0,0.00038356,8]
[420320138,1775962262473,-500.0,0.00038356,8]
[420320139,1775962262482,-500.0,0.00038356,8]
[420320140,1775962262494,-607.83024708,0.00038356,8]
[420320141,1775962262505,-500.0,0.00038356,8]
[420320142,1775962262517,-500.0,0.00038356,8]
[420320143,1775962262527,-500.0,0.00038356,8]
[420320144,1775962262544,-169.24878176,0.00038356,8]
[420320145,1775962262555,-500.0,0.00038356,8]
[420320146,1775962262564,-861.96,0.00038356,8]
[420320147,1775962262584,-739.09,0.00038356,8]
[420320148,1775962262598,-500.0,0.00038356,8]
[420320149,1775962262607,-500.0,0.00038356,8]
[420320150,1775962262620,-500.0,0.00038356,8]
[420320151,1775962262643,-542.11369128,0.00038356,8]
[420320152,1775962262671,-461.39868953,0.00038356,8]
[420320153,1775962262682,-575.61752091,0.00038356,8]
[420320154,1775962262704,-500.0,0.00038356,8]
[420320155,1775962262749,-500.0,0.00038356,8]
[420320156,1775962262759,-500.0,0.00038356,8]
[420320157,1775962262778,-500.0,0.00038356,8]
[420320158,1775962262788,-610.39,0.00038356,8]
[420320159,1775962262797,-500.0,0.00038356,8]
[420320160,1775962262806,-500.0,0.00038356,8]
[420320161,1775962262816,-500.0,0.00038356,8]
[420320162,1775962262828,-500.0,0.00038356,8]
[420320163,1775962262838,-500.0,0.00038356,8]
[420320164,1775962262847,-500.0,0.00038356,8]
[420320165,1775962262856,-500.0,0.00038356,8]
[420320166,1775962262866,-544.45,0.00038356,8]
[420320167,1775962262877,-500.0,0.00038356,8]
[420320168,1775962262886,-500.0,0.00038356,8]
[420320169,1775962262898,-500.0,0.00038356,8]
[420320170,1775962262911,-510.63323184,0.00038356,8]
[420320171,1775962262920,-500.0,0.00038356,8]
[420320172,1775962262930,-500.0,0.00038356,8]
[420320173,1775962262944,-453.55606447,0.00038356,8]
[420320174,1775962262964,-500.0,0.00038356,8]
[420320175,1775962262974,-1256.85,0.00038356,8]
[420320176,1775962262983,-500.0,0.00038356,8]
[420320177,1775962263003,-560.10773826,0.00038356,8]
[420320178,1775962263012,-926.53,0.00038356,8]
[420320179,1775962263030,-500.0,0.00038356,8]
[420320180,1775962263042,-500.0,0.00038356,8]
[420320181,1775962263051,-500.0,0.00038356,8]
[420320182,1775962263070,-597.75,0.00038356,8]
[420320183,1775962263081,-696.98,0.00038356,8]
[420320184,1775962263091,-500.0,0.00038356,8]
[420320185,1775962263105,-500.0,0.00038356,8]
[420320186,1775962263137,-500.0,0.00038356,8]
[420320187,1775962263149,-2401.6593536,0.00038356,120]
[420320188,1775962263181,-500.0,0.00038356,8]
[420320189,1775962263192,-622.97473849,0.00038356,8]
[420320190,1775962263202,-500.0,0.00038356,8]
[420320191,1775962263218,-500.0,0.00038356,8]
[420320192,1775962263228,-581.83,0.00038356,8]
[420320193,1775962263238,-969.23,0.00038356,8]
[420320194,1775962263248,-500.0,0.00038356,8]
[420320195,1775962263260,-1925.83,0.00038356,8]
[420320196,1775962263269,-739.68,0.00038356,8]
[420320197,1775962263279,-500.0,0.00038356,8]
[420320198,1775962263290,-500.0,0.00038356,8]
[420320199,1775962263303,-537.83988651,0.00038356,8]
[420320200,1775962263315,-500.0,0.00038356,8]
[420320201,1775962263325,-781.63,0.00038356,8]
[420320202,1775962263336,-500.0,0.00038356,8]
[420320203,1775962263350,-500.0,0.00038356,8]
[420320204,1775962263362,-500.0,0.00038356,8]
[420320205,1775962263373,-991.58,0.00038356,8]
[420320206,1775962263383,-599.02710064,0.00038356,8]
[420320207,1775962263401,-500.0,0.00038356,8]
[420320208,1775962263410,-500.0,0.00038356,8]
[420320209,1775962263420,-500.0,0.00038356,8]
[420320210,1775962263441,-551.14,0.00038356,8]
[420320211,1775962263450,-3415.03,0.00038356,8]
[420320212,1775962263463,-500.0,0.00038356,8]
[420320213,1775962263484,-2978.9,0.00038356,8]
[420320214,1775962263495,-646.54019164,0.00038356,8]
[420320215,1775962263506,-500.0,0.00038356,8]
[420320216,1775962263546,-500.0,0.00038356,8]
[420320217,1775962263560,-500.0,0.00038356,8]
[420320218,1775962263589,-2588.69,0.00038356,8]
[420320219,1775962263612,-500.0,0.00038356,8]
[420320220,1775962263673,-500.0,0.00038356,8]
[420320221,1775962263690,-626.25793728,0.00038356,8]
[420320222,1775962263716,-1547.53,0.00038356,8]
[420320223,1775962263731,-500.0,0.00038356,8]
[420320224,1775962263751,-2893.89,0.00038356,8]
[420320225,1775962263768,-500.0,0.00038356,8]
[420320226,1775962263778,-500.0,0.00038356,8]
[420320227,1775962263791,-500.0,0.00038356,8]
[420320228,1775962263807,-500.0,0.00038356,8]
[420320229,1775962263816,-500.0,0.00038356,8]
[420320230,1775962263826,-376.46008555,0.00038356,8]
[420320231,1775962263843,-500.0,0.00038356,8]
[420320232,1775962263853,-500.0,0.00038356,8]
[420320233,1775962263862,-500.0,0.00038356,8]
[420320234,1775962263891,-500.0,0.00038356,8]
[420320235,1775962263901,-500.0,0.00038356,8]
[420320236,1775962263911,-336.35994214,0.00038356,8]
[420320237,1775962263921,-1025.65,0.00038356,8]
[420320238,1775962263934,-1181.61,0.00038356,8]
[420320239,1775962263944,-989.53,0.00038356,8]
[420320240,1775962263953,-500.0,0.00038356,8]
[420320241,1775962263963,-1939.4,0.00038356,8]
[420320242,1775962263976,-500.0,0.00038356,8]
[420320243,1775962263986,-2100.93,0.00038356,8]
[420320244,1775962263995,-1688.29,0.00038356,8]
[420320245,1775962264005,-500.0,0.00038356,8]
[420320246,1775962264018,-500.0,0.00038356,8]
[420320247,1775962264028,-500.0,0.00038356,8]
[420320248,1775962264037,-500.0,0.00038356,8]
[420320249,1775962264048,-797.13,0.00038356,8]
[420320250,1775962264071,-928.88,0.00038356,8]
[420320251,1775962264080,-500.0,0.00038356,8]
[420320252,1775962264090,-500.0,0.00038356,8]
[420320253,1775962264117,-680.19,0.00038356,8]
[420320254,1775962264128,-150.95599028,0.00038356,8]
[420320255,1775962264160,-500.0,0.00038356,8]
[420320256,1775962264184,-500.0,0.00038356,8]
[420320257,1775962264194,-513.51,0.00038356,8]
[420320258,1775962264203,-2458.41,0.00038356,8]
[420320259,1775962264215,-2826.59,0.00038356,8]
[420320260,1775962264225,-949.31,0.00038356,8]
[420320261,1775962264238,-500.0,0.00038356,8]
[420320262,1775962264247,-500.0,0.00038356,8]
[420320263,1775962264257,-500.0,0.00038356,8]
[420320264,1775962264271,-500.0,0.00038356,8]
[420320265,1775962264283,-527.36,0.00038356,8]
[420320266,1775962264293,-500.0,0.00038356,8]
[420320267,1775962264312,-1408.75,0.00038356,8]
[420320268,1775962264322,-500.0,0.00038356,8]
[420320269,1775962264331,-388.45715766,0.00038356,5]
[420320270,1775962264341,-294.14485821,0.00038356,8]
[420320271,1775962264361,-500.0,0.00038356,8]
[420320272,1775962264371,-500.0,0.00038356,8]
[420320273,1775962264383,-500.0,0.00038356,8]
[420320274,1775962264408,-500.0,0.00038356,8]
[420320275,1775962264417,-500.0,0.00038356,8]
[420320276,1775962264427,-500.0,0.00038356,8]
[420320277,1775962264447,-2096.21,0.00038356,8]
[420320278,1775962264458,-500.0,0.00038356,8]
[420320279,1775962264471,-1588.12,0.00038356,8]
[420320280,1775962264489,-1373.31,0.00038356,8]
[420320281,1775962264502,-500.0,0.00038356,8]
[420320282,1775962264513,-500.0,0.00038356,8]
[420320283,1775962264529,-2242.9,0.00038356,8]
[420320284,1775962264550,-500.0,0.00038356,8]
[420320285,1775962264560,-500.0,0.00038356,8]
[420320286,1775962264581,-500.0,0.00038356,8]
[420320287,1775962264613,-500.0,0.00038356,8]
[420320288,1775962264623,-1653.71,0.00038356,8]
[420320289,1775962264637,-500.0,0.00038356,8]
[420320290,1775962264649,-500.0,0.00038356,8]
[420320291,1775962264659,-500.0,0.00038356,8]
[420320292,1775962264668,-500.0,0.00038356,8]
[420320293,1775962264683,-500.0,0.00038356,8]
[420320294,1775962264695,-500.0,0.00038356,8]
[420320295,1775962264706,-610.92,0.00038356,8]
[420320296,1775962264715,-500.0,0.00038356,2]
[420320297,1775962264751,-500.0,0.00038356,8]
[420320298,1775962264761,-1121.52,0.00038356,8]
[420320299,1775962264783,-546.3788744,0.00038356,8]
[420320300,1775962264798,-500.0,0.00038356,8]
[420320301,1775962264816,-500.0,0.00038356,8]
[420320302,1775962264849,-500.0,0.00038356,8]
[420320303,1775962264864,-202.51593462,0.00038356,8]
[420320304,1775962264874,-1182.44,0.00038356,8]
[420320305,1775962264892,-2208.54,0.00038356,2]
[420320306,1775962264904,-500.0,0.00038356,8]
[420320307,1775962264948,-500.0,0.00038356,8]
[420320308,1775962264958,-500.0,0.00038356,8]